fUSD/lending_fUSD_20240516
["ID","MTS","AMOUNT","RATE_DAILY","PERIOD"]
[327221988,1715903454286,-500.0,0.00011075,2]
[327221989,1715903454296,-2801.68,0.00011075,2]
[327221990,1715903454305,-500.0,0.00011075,2]
[327221991,1715903454315,-2152.65,0.00011075,2]
[327221992,1715903454325,-500.0,0.00011075,2]
[327221993,1715903454334,-500.0,0.00011075,2]
[327221994,1715903454344,-500.0,0.00011075,2]
[327221995,1715903454354,-500.0,0.00011075,2]
[327221996,1715903454363,-1876.24,0.00011075,2]
[327221997,1715903454373,-1516.42,0.00011075,2]
[327221998,1715903454382,-500.0,0.00011075,2]
[327221999,1715903454393,-161.61,0.00011075,2]
[327222000,1715903454403,-634.66,0.00011075,2]
[327222001,1715903454412,-500.0,0.00011075,2]
[327222002,1715903454422,-500.0,0.00011075,2]
[327222003,1715903454431,-495.03,0.00011075,2]
[327222004,1715903454441,-1489.54,0.00011075,2]
[327222005,1715903454451,-500.0,0.00011075,2]
[327222006,1715903454461,-2837.02,0.00011075,2]
[327222007,1715903454471,-500.0,0.00011075,2]
[327222008,1715903454480,-500.0,0.00011075,2]
[327222009,1715903454490,-955.34,0.00011075,2]
[327222010,1715903454500,-500.0,0.00011075,2]
[327222011,1715903454510,-693.52,0.00011075,2]
[327222012,1715903454521,-734.42,0.00011075,2]
[327222013,1715903454531,-614.16,0.00011075,2]
[327222014,1715903454540,-2764.84,0.00011075,2]
[327222015,1715903454551,-1856.35,0.00011075,2]
[327222016,1715903454561,-990.64,0.00011075,2]
[327222017,1715903454571,-1568.32,0.00011075,2]
[327222018,1715903454582,-500.0,0.00011075,2]
[327222019,1715903454592,-1717.79,0.00011075,2]
[327222020,1715903454602,-500.0,0.00011075,2]
[327222021,1715903454612,-706.42,0.00011075,2]
[327222022,1715903454623,-645.19,0.00011075,2]
[327222023,1715903454633,-1283.35,0.00011075,2]
[327222024,1715903454643,-850.59,0.00011075,2]
[327222025,1715903454653,-1151.36,0.00011075,2]
[327222026,1715903454663,-2959.66,0.00011075,2]
[327222027,1715903454673,-500.0,0.00011075,2]
[327222028,1715903454683,-519.5,0.00011075,2]
[327222029,1715903454693,-500.0,0.00011075,2]
[327222030,1715903454704,-839.09,0.00011075,2]
[327222031,1715903454713,-579.69,0.00011075,2]
[327222032,1715903454723,-673.71,0.00011075,2]
[327222033,1715903454733,-1584.13,0.00011075,2]
[327222034,1715903454742,-610.4,0.00011075,2]
[327222035,1715903454752,-500.0,0.00011075,2]
[327222036,1715903454763,-310.67,0.00011075,2]
[327222037,1715903454773,-500.0,0.00011075,2]
[327222038,1715903454783,-500.0,0.00011075,2]
[327222039,1715903454793,-614.64,0.00011075,2]
[327222040,1715903454804,-500.0,0.00011075,2]
[327222041,1715903454814,-1700.56,0.00011075,2]
[327222042,1715903454824,-715.05,0.00011075,2]
[327222043,1715903454833,-527.73,0.00011075,2]
[327222044,1715903454843,-518.03,0.00011075,2]
[327222045,1715903454853,-2682.53,0.00011075,2]
[327222046,1715903454863,-379.43333334,0.00011075,2]
[327222047,1715903454873,-500.0,0.00011075,2]
[327222048,1715903454883,-566.49,0.00011075,2]
[327222049,1715903454893,-1832.75,0.00011075,2]
[327222050,1715903454903,-500.0,0.00011075,2]
[327222051,1715903454917,-915.85,0.00011075,2]
[327222052,1715903454927,-500.0,0.00011075,2]
[327222053,1715903454937,-500.0,0.00011075,2]
[327222054,1715903454946,-1396.87,0.00011075,2]
[327222055,1715903454958,-1611.3,0.00011075,2]
[327222056,1715903454968,-500.0,0.00011075,2]
[327222057,1715903454979,-1377.87,0.00011075,2]
[327222058,1715903454991,-500.0,0.00011075,2]
[327222059,1715903455001,-2502.58,0.00011075,2]
[327222060,1715903455011,-363.22462677,0.00011075,2]
[327222061,1715903455022,-500.0,0.00011075,2]
[327222062,1715903455032,-1996.23,0.00011075,2]
[327222063,1715903455041,-4363.33,0.00011075,2]
[327222064,1715903455051,-858.54,0.00011075,2]
[327222065,1715903455060,-5327.56,0.00011075,2]
[327222066,1715903455070,-500.0,0.00011075,2]
[327222067,1715903455080,-1707.79,0.00011075,2]
[327222068,1715903455090,-500.0,0.00011075,2]
[327222069,1715903455100,-1016.57,0.00011075,2]
[327222070,1715903455110,-331.07,0.00011075,2]
[327222071,1715903455120,-8375.93,0.00011075,2]
[327222072,1715903455129,-1353.56,0.00011075,2]
[327222073,1715903455140,-3571.76,0.00011075,2]
[327222074,1715903455149,-500.0,0.00011075,2]
[327222075,1715903455160,-500.0,0.00011075,2]
[327222076,1715903455170,-500.0,0.00011075,2]
[327222077,1715903455180,-86217.7923,0.00011076,2]
[327222078,1715903455190,-156.23509437,0.00011076,2]
[327222079,1715903455200,-500.0,0.00011076,2]
[327222080,1715903455209,-500.0,0.00011076,2]
[327222081,1715903455219,-1634.57,0.00011076,2]
[327222082,1715903455229,-500.0,0.00011076,2]
[327222083,1715903455238,-500.0,0.00011076,2]
[327222084,1715903455248,-658.27,0.00011076,2]
[327222085,1715903455258,-2144.55,0.00011076,2]
[327222086,1715903455267,-1334.67,0.00011076,2]
[327222087,1715903455277,-1911.64,0.00011076,2]
[327222088,1715903455287,-6134.87,0.00011076,2]
[327222089,1715903455297,-500.0,0.00011076,2]
[327222090,1715903455307,-2225.73,0.00011076,2]
[327222091,1715903455316,-11711.69,0.00011076,2]
[327222092,1715903455326,-1016.15,0.00011076,2]
[327222093,1715903455336,-1547.65,0.00011076,2]
[327222094,1715903455346,-1884.69,0.00011076,2]
[327222095,1715903455355,-151.0,0.00011076,2]
[327222096,1715903455365,-151.0,0.00011076,2]
[327222097,1715903455375,-1000.0,0.00011077,2]
[327222098,1715903455385,-1703.44,0.00011143,2]
[327222099,1715903455395,-698.45,0.00011143,2]
[327222100,1715903455405,-3594.91,0.00011143,2]
[327222101,1715903455415,-715.14,0.00011143,2]
[327222102,1715903455485,-957.83,0.00011143,2]
[327222103,1715903455495,-500.0,0.00011143,2]
[327222104,1715903455505,-500.0,0.00011143,2]
[327222105,1715903455514,-2485.89,0.00011143,2]
[327222106,1715903455524,-576.56,0.00011143,2]
[327222107,1715903455533,-2497.65,0.00011143,2]
[327222108,1715903455543,-18093.87,0.00011143,2]
[327222109,1715903455552,-1872.54,0.00011143,2]
[327222110,1715903455562,-2159.43,0.00011143,2]
[327222111,1715903455572,-605.33,0.00011143,2]
[327222112,1715903455581,-500.0,0.00011143,2]
[327222113,1715903455591,-500.0,0.00011143,2]
[327222114,1715903455602,-1563.27,0.00011143,2]
[327222115,1715903455612,-1542.58,0.00011143,2]
[327222116,1715903455622,-1020.47,0.00011143,2]
[327222117,1715903455632,-864.39,0.00011143,2]
[327222118,1715903455641,-500.0,0.00011143,2]
[327222119,1715903455650,-2556.69,0.00011143,2]
[327222120,1715903455660,-2372.7,0.00011143,2]
[327222121,1715903455670,-1742.49,0.00011143,2]
[327222122,1715903455679,-500.0,0.00011143,2]
[327222123,1715903455689,-500.0,0.00011172,2]
[327222124,1715903455699,-500.0,0.00011172,2]
[327222125,1715903455709,-500.0,0.00011172,2]
[327222126,1715903455719,-500.0,0.00011172,2]
[327222127,1715903455728,-706.42,0.00011172,2]
[327222128,1715903455738,-151.0,0.00011172,2]
[327222129,1715903455747,-500.0,0.00011172,2]
[327222130,1715903455757,-224.907381,0.00011172,2]
[327222131,1715903455767,-151.0,0.00011172,2]
[327222132,1715903455777,-151.0,0.00011172,2]
[327222133,1715903455786,-673.71,0.00011172,2]
[327222134,1715903455795,-151.0,0.00011172,2]
[327222135,1715903455805,-151.0,0.00011172,2]
[327222136,1715903455815,-500.0,0.00011172,2]
[327222137,1715903455825,-910.980442,0.00011172,2]
[327222138,1715903455835,-244.895458,0.00011172,2]
[327222139,1715903455846,-910.980442,0.00011172,2]
[327222140,1715903455856,-151.0,0.00011172,2]
[327222141,1715903455866,-151.0,0.00011172,2]
[327222142,1715903455876,-244.895458,0.00011172,2]
[327222143,1715903455885,-151.0,0.00011172,2]
[327222144,1715903455895,-578.87,0.00011172,2]
[327222145,1715903455905,-151.0,0.00011172,2]
[327222146,1715903455920,-151.962472,0.00011172,2]
[327222147,1715903455930,-151.0,0.00011172,2]
[327222148,1715903455939,-151.0,0.00011172,2]
[327222149,1715903455950,-1377.87,0.00011172,2]
[327222150,1715903455960,-151.0,0.00011172,2]
[327222151,1715903455969,-151.0,0.00011172,2]
[327222152,1715903455979,-151.826439,0.00011172,2]
[327222153,1715903455991,-324.2325388,0.00011172,2]
[327222154,1715903456001,-500.0,0.00011172,2]
[327222155,1715903456011,-502.38,0.00011173,2]
[327222156,1715903456021,-500.0,0.00011173,2]
[327222157,1715903456030,-500.0,0.00011173,2]
[327222158,1715903456039,-337.83,0.00011173,2]
[327222159,1715903456049,-500.0,0.00011173,2]
[327222160,1715903456059,-500.0,0.00011173,2]
[327222161,1715903456069,-277.69,0.00011173,2]
[327222162,1715903456078,-500.0,0.00011173,2]
[327222163,1715903456088,-846.89,0.00011173,2]
[327222164,1715903456099,-500.0,0.00011173,2]
[327222165,1715903456109,-500.0,0.00011173,2]
[327222166,1715903456126,-500.0,0.00011173,2]
[327222167,1715903456139,-500.0,0.00011173,2]
[327222168,1715903456149,-673.11,0.00011173,2]
[327222169,1715903456158,-529.02,0.00011173,2]
[327222170,1715903456168,-500.0,0.00011173,2]
[327222171,1715903456178,-500.0,0.00011173,2]
[327222172,1715903456188,-500.0,0.00011173,2]
[327222173,1715903456197,-178.13,0.00011173,2]
[327222174,1715903456208,-500.0,0.00011173,2]
[327222175,1715903456218,-500.0,0.00011173,2]
[327222176,1715903456227,-500.0,0.00011173,2]
[327222177,1715903456237,-500.0,0.00011173,2]
[327222178,1715903456247,-500.0,0.00011173,2]
[327222179,1715903456256,-500.0,0.00011173,2]
[327222180,1715903456266,-500.0,0.00011173,2]
[327222181,1715903456277,-500.0,0.00011173,2]
[327222182,1715903456288,-500.0,0.00011173,2]
[327222183,1715903456298,-427.29068116,0.00011173,2]
[327222184,1715903456308,-500.0,0.00011173,2]
[327222185,1715903456317,-500.0,0.00011173,2]
[327222186,1715903456327,-500.0,0.00011173,2]
[327222187,1715903456337,-500.0,0.00011173,2]
[327222188,1715903456348,-500.0,0.00011173,2]
[327222189,1715903456358,-500.0,0.00011173,2]
[327222190,1715903456368,-482.37,0.00011173,2]
[327222191,1715903456377,-542.15127085,0.00011173,2]
[327222192,1715903456387,-500.0,0.00011173,2]
[327222193,1715903456397,-803.72,0.00011173,2]
[327222194,1715903456407,-500.0,0.00011173,2]
[327222195,1715903456417,-500.0,0.00011173,2]
[327222196,1715903456430,-500.0,0.00011173,2]
[327222197,1715903456439,-500.0,0.00011173,2]
[327222198,1715903456450,-500.0,0.00011173,2]
[327222199,1715903456460,-500.0,0.00011173,2]
[327222200,1715903456470,-500.0,0.00011173,2]
[327222201,1715903456479,-500.0,0.00011173,2]
[327222202,1715903456489,-568.55,0.00011173,2]
[327222203,1715903456499,-500.0,0.00011173,2]
[327222204,1715903456508,-500.0,0.00011173,2]
[327222205,1715903456517,-738.06,0.00011173,2]
[327222206,1715903456526,-566.17,0.00011173,2]
[327222207,1715903456536,-500.0,0.00011173,2]
[327222208,1715903456546,-500.0,0.00011173,2]
[327222209,1715903456556,-3979.97,0.00011173,2]
[327222210,1715903456565,-3979.97,0.00011173,2]
[327222211,1715903456576,-500.0,0.00011173,2]
[327222212,1715903456586,-500.0,0.00011173,2]
[327222213,1715903456596,-674.83,0.00011173,2]
[327222214,1715903456606,-151.0,0.00011173,2]
[327222215,1715903456615,-2240.49,0.00011173,2]
[327222216,1715903456624,-568.09,0.00011173,2]
[327222217,1715903456634,-893.76,0.00011173,2]
[327222218,1715903456643,-151.0,0.00011173,2]
[327222219,1715903456652,-611.97,0.00011173,2]
[327222220,1715903456662,-940.45,0.00011173,2]
[327222221,1715903456671,-982.56,0.00011173,2]
[327222222,1715903456681,-351.92,0.00011173,2]
[327222223,1715903456690,-151.0,0.00011173,2]
[327222224,1715903456699,-1270.63,0.00011173,2]
[327222225,1715903456709,-500.0,0.00011173,2]
[327222226,1715903456718,-151.0,0.00011173,2]
[327222227,1715903456728,-664.38,0.00011173,2]
[327222228,1715903456737,-339.350696,0.00011173,2]
[327222229,1715903456746,-500.0,0.00011173,2]
[327222230,1715903456755,-173.548281,0.00011173,2]
[327222231,1715903456764,-151.0,0.00011173,2]
[327222232,1715903456773,-151.0,0.00011173,2]
[327222233,1715903456783,-620.14,0.00011173,2]
[327222234,1715903456792,-339.350696,0.00011173,2]
[327222235,1715903456801,-151.0,0.00011173,2]
[327222236,1715903456810,-168.658807,0.00011173,2]
[327222237,1715903456820,-1465.08,0.00011173,2]
[327222238,1715903456830,-500.0,0.00011173,2]
[327222239,1715903456839,-500.0,0.00011173,2]
[327222240,1715903456848,-1002.69,0.00011173,2]
[327222241,1715903456859,-151.0,0.00011173,2]
[327222242,1715903456871,-500.0,0.00011173,2]
[327222243,1715903456882,-2801.68,0.00011173,2]
[327222244,1715903456892,-500.0,0.00011173,2]
[327222245,1715903456903,-2801.68,0.00011173,2]
[327222246,1715903456920,-500.0,0.00011173,2]
[327222247,1715903456932,-2152.65,0.00011173,2]
[327222248,1715903456942,-500.0,0.00011173,2]
[327222249,1715903456955,-500.0,0.00011173,2]
[327222250,1715903456964,-500.0,0.00011173,2]
[327222251,1715903456973,-182.627661,0.00011173,2]
[327222252,1715903456983,-500.0,0.00011173,2]
[327222253,1715903456995,-500.0,0.00011173,2]
[327222254,1715903457004,-1876.24,0.00011173,2]
[327222255,1715903457015,-151.0,0.00011173,2]
[327222256,1715903457024,-1876.24,0.00011173,2]
[327222257,1715903457035,-1516.42,0.00011173,2]
[327222258,1715903457045,-500.0,0.00011173,2]
[327222259,1715903457054,-182.627661,0.00011173,2]
[327222260,1715903457063,-327.45,0.00011173,2]
[327222261,1715903457072,-634.66,0.00011173,2]
[327222262,1715903457081,-526.4,0.00011173,2]
[327222263,1715903457090,-500.0,0.00011173,2]
[327222264,1715903457101,-500.0,0.00011173,2]
[327222265,1715903457110,-1489.54,0.00011173,2]
[327222266,1715903457121,-500.0,0.00011173,2]
[327222267,1715903457131,-500.0,0.00011173,2]
[327222268,1715903457140,-2837.02,0.00011173,2]
[327222269,1715903457150,-2837.02,0.00011173,2]
[327222270,1715903457159,-500.0,0.00011173,2]
[327222271,1715903457168,-500.0,0.00011173,2]
[327222272,1715903457178,-955.34,0.00011173,2]
[327222273,1715903457187,-151.0,0.00011173,2]
[327222274,1715903457196,-500.0,0.00011173,2]
[327222275,1715903457205,-693.52,0.00011173,2]
[327222276,1715903457215,-734.42,0.00011173,2]
[327222277,1715903457224,-693.52,0.00011173,2]
[327222278,1715903457234,-614.16,0.00011173,2]
[327222279,1715903457243,-2764.84,0.00011173,2]
[327222280,1715903457252,-2764.84,0.00011173,2]
[327222281,1715903457264,-1856.35,0.00011173,2]
[327222282,1715903457274,-990.64,0.00011173,2]
[327222283,1715903457284,-1568.32,0.00011173,2]
[327222284,1715903457294,-500.0,0.00011173,2]
[327222285,1715903457304,-500.0,0.00011173,2]
[327222286,1715903457316,-1717.79,0.00011173,2]
[327222287,1715903457325,-500.0,0.00011173,2]
[327222288,1715903457336,-1717.79,0.00011173,2]
[327222289,1715903457346,-706.42,0.00011173,2]
[327222290,1715903457355,-645.19,0.00011173,2]
[327222291,1715903457364,-645.19,0.00011173,2]
[327222292,1715903457374,-1283.35,0.00011173,2]
[327222293,1715903457383,-850.59,0.00011173,2]
[327222294,1715903457392,-1151.36,0.00011173,2]
[327222295,1715903457402,-2959.66,0.00011173,2]
[327222296,1715903457411,-2959.66,0.00011173,2]
[327222297,1715903457420,-500.0,0.00011173,2]
[327222298,1715903457429,-519.5,0.00011173,2]
[327222299,1715903457439,-519.5,0.00011173,2]
[327222300,1715903457448,-500.0,0.00011173,2]
[327222301,1715903457457,-839.09,0.00011173,2]
[327222302,1715903457467,-579.69,0.00011173,2]
[327222303,1715903457476,-673.71,0.00011173,2]
[327222304,1715903457487,-1584.13,0.00011173,2]
[327222305,1715903457497,-1584.13,0.00011173,2]
[327222306,1715903457507,-610.4,0.00011173,2]
[327222307,1715903457516,-500.0,0.00011173,2]
[327222308,1715903457526,-500.0,0.00011173,2]
[327222309,1715903457536,-500.0,0.00011173,2]
[327222310,1715903457547,-614.64,0.00011173,2]
[327222311,1715903457559,-500.0,0.00011173,2]
[327222312,1715903457569,-500.0,0.00011173,2]
[327222313,1715903457579,-500.0,0.00011173,2]
[327222314,1715903457590,-1700.56,0.00011173,2]
[327222315,1715903457601,-1700.56,0.00011173,2]
[327222316,1715903457614,-715.05,0.00011173,2]
[327222317,1715903457625,-527.73,0.00011173,2]
[327222318,1715903457636,-518.03,0.00011173,2]
[327222319,1715903457646,-2682.53,0.00011173,2]
[327222320,1715903457657,-566.49,0.00011173,2]
[327222321,1715903457667,-1832.75,0.00011173,2]
[327222322,1715903457676,-1832.75,0.00011173,2]
[327222323,1715903457686,-500.0,0.00011173,2]
[327222324,1715903457697,-500.0,0.00011173,2]
[327222325,1715903457706,-915.85,0.00011173,2]
[327222326,1715903457716,-1396.87,0.00011173,2]
[327222327,1715903457726,-915.85,0.00011173,2]
[327222328,1715903457736,-500.0,0.00011173,2]
[327222329,1715903457746,-1611.3,0.00011173,2]
[327222330,1715903457756,-1377.87,0.00011173,2]
[327222331,1715903457766,-500.0,0.00011173,2]
[327222332,1715903457776,-2502.58,0.00011173,2]
[327222333,1715903457785,-500.0,0.00011173,2]
[327222334,1715903457795,-500.0,0.00011173,2]
[327222335,1715903457805,-1996.23,0.00011173,2]
[327222336,1715903457815,-1996.23,0.00011173,2]
[327222337,1715903457824,-4363.33,0.00011173,2]
[327222338,1715903457834,-858.54,0.00011173,2]
[327222339,1715903457844,-5327.56,0.00011173,2]
[327222340,1715903457854,-500.0,0.00011173,2]
[327222341,1715903457863,-500.0,0.00011173,2]
[327222342,1715903457874,-1707.79,0.00011173,2]
[327222343,1715903457883,-1016.57,0.00011173,2]
[327222344,1715903457892,-8375.93,0.00011173,2]
[327222345,1715903457902,-1353.56,0.00011173,2]
[327222346,1715903457915,-8375.93,0.00011173,2]
[327222347,1715903457925,-3571.76,0.00011173,2]
[327222348,1715903457935,-3571.76,0.00011173,2]
[327222349,1715903457945,-500.0,0.00011173,2]
[327222350,1715903457956,-500.0,0.00011173,2]
[327222351,1715903457966,-500.0,0.00011174,2]
[327222352,1715903457976,-500.0,0.00011174,2]
[327222353,1715903457987,-500.0,0.00011174,2]
[327222354,1715903457997,-500.0,0.00011174,2]
[327222355,1715903458007,-510.59,0.00011174,2]
[327222356,1715903458016,-510.59,0.00011174,2]
[327222357,1715903458026,-500.0,0.00011174,2]
[327222358,1715903458035,-500.0,0.00011174,2]
[327222359,1715903458045,-500.0,0.00011174,2]
[327222360,1715903458055,-500.0,0.00011174,2]
[327222361,1715903458065,-500.0,0.00011174,2]
[327222362,1715903458075,-500.0,0.00011174,2]
[327222363,1715903458084,-773.1,0.00011174,2]
[327222364,1715903458097,-773.1,0.00011174,2]
[327222365,1715903458107,-500.0,0.00011174,2]
[327222366,1715903458118,-636.9,0.00011174,2]
[327222367,1715903458128,-636.9,0.00011174,2]
[327222368,1715903458139,-500.0,0.00011174,2]
[327222369,1715903458149,-500.0,0.00011174,2]
[327222370,1715903458159,-500.0,0.00011174,2]
[327222371,1715903458169,-500.0,0.00011174,2]
[327222372,1715903458180,-253.91,0.00011174,2]
[327222373,1715903458190,-500.0,0.00011174,2]
[327222374,1715903458200,-500.0,0.00011174,2]
[327222375,1715903458210,-500.0,0.00011174,2]
[327222376,1715903458220,-500.0,0.00011174,2]
[327222377,1715903458231,-500.0,0.00011174,2]
[327222378,1715903458240,-500.0,0.00011174,2]
[327222379,1715903458250,-500.0,0.00011174,2]
[327222380,1715903458260,-500.0,0.00011174,2]
[327222381,1715903458270,-500.0,0.00011174,2]
[327222382,1715903458280,-509.48,0.00011174,2]
[327222383,1715903458290,-500.0,0.00011174,2]
[327222384,1715903458300,-500.0,0.00011174,2]
[327222385,1715903458310,-650.66,0.00011174,2]
[327222386,1715903458320,-650.66,0.00011174,2]
[327222387,1715903458330,-500.0,0.00011174,2]
[327222388,1715903458340,-500.0,0.00011174,2]
[327222389,1715903458350,-500.0,0.00011174,2]
[327222390,1715903458360,-500.0,0.00011174,2]
[327222391,1715903458372,-500.0,0.00011174,2]
[327222392,1715903458384,-500.0,0.00011174,2]
[327222393,1715903458395,-500.0,0.00011174,2]
[327222394,1715903458407,-500.0,0.00011174,2]
[327222395,1715903458417,-500.0,0.00011174,2]
[327222396,1715903458427,-500.0,0.00011174,2]
[327222397,1715903458438,-500.0,0.00011174,2]
[327222398,1715903458449,-500.0,0.00011174,2]
[327222399,1715903458459,-500.0,0.00011174,2]
[327222400,1715903458469,-500.0,0.00011174,2]
[327222401,1715903458479,-500.0,0.00011174,2]
[327222402,1715903458489,-500.0,0.00011174,2]
[327222403,1715903458499,-500.0,0.00011174,2]
[327222404,1715903458510,-500.0,0.00011174,2]
[327222405,1715903458520,-500.0,0.00011174,2]
[327222406,1715903458530,-500.0,0.00011174,2]
[327222407,1715903458541,-500.0,0.00011174,2]
[327222408,1715903458551,-500.0,0.00011174,2]
[327222409,1715903458561,-500.0,0.00011174,2]
[327222410,1715903458571,-1615.19,0.00011174,2]
[327222411,1715903458582,-1615.19,0.00011174,2]
[327222412,1715903458592,-690.37,0.00011174,2]
[327222413,1715903458602,-690.37,0.00011174,2]
[327222414,1715903458611,-500.0,0.00011174,2]
[327222415,1715903458621,-500.0,0.00011174,2]
[327222416,1715903458631,-1207.6,0.00011174,2]
[327222417,1715903458642,-1207.6,0.00011174,2]
[327222418,1715903458652,-840.15,0.00011174,2]
[327222419,1715903458662,-840.15,0.00011174,2]
[327222420,1715903458672,-500.0,0.00011174,2]
[327222421,1715903458683,-500.0,0.00011174,2]
[327222422,1715903458693,-918.05,0.00011174,2]
[327222423,1715903458704,-918.05,0.00011174,2]
[327222424,1715903458714,-500.0,0.00011174,2]
[327222425,1715903458724,-500.0,0.00011174,2]
[327222426,1715903458735,-502.38,0.00011174,2]
[327222427,1715903458745,-500.0,0.00011174,2]
[327222428,1715903458755,-500.0,0.00011174,2]
[327222429,1715903458765,-740.25,0.00011174,2]
[327222430,1715903458776,-740.25,0.00011174,2]
[327222431,1715903458786,-500.0,0.00011174,2]
[327222432,1715903458797,-500.0,0.00011174,2]
[327222433,1715903458807,-500.0,0.00011174,2]
[327222434,1715903458817,-500.0,0.00011174,2]
[327222435,1715903458827,-677.62,0.00011174,2]
[327222436,1715903458836,-677.62,0.00011174,2]
[327222437,1715903458847,-500.0,0.00011174,2]
[327222438,1715903458857,-500.0,0.00011174,2]
[327222439,1715903458867,-500.0,0.00011174,2]
[327222440,1715903458876,-500.0,0.00011174,2]
[327222441,1715903458886,-500.0,0.00011174,2]
[327222442,1715903458896,-500.0,0.00011174,2]
[327222443,1715903458906,-600.88,0.00011174,2]
[327222444,1715903458921,-500.8593003,0.00011174,2]
[327222445,1715903458931,-500.0,0.00011174,2]
[327222446,1715903458941,-500.0,0.00011174,2]
[327222447,1715903458951,-998.74,0.00011174,2]
[327222448,1715903458962,-500.0,0.00011174,2]
[327222449,1715903458972,-998.74,0.00011174,2]
[327222450,1715903458982,-218.45257109,0.00011174,2]
[327222451,1715903458993,-500.0,0.00011174,2]
[327222452,1715903459003,-500.0,0.00011174,2]
[327222453,1715903459014,-500.0,0.00011174,2]
[327222454,1715903459024,-1180.46,0.00011174,2]
[327222455,1715903459034,-1180.46,0.00011174,2]
[327222456,1715903459045,-846.89,0.00011174,2]
[327222457,1715903459055,-724.65,0.00011174,2]
[327222458,1715903459064,-724.65,0.00011174,2]
[327222459,1715903459075,-783.1,0.00011174,2]
[327222460,1715903459084,-500.0,0.00011174,2]
[327222461,1715903459095,-783.1,0.00011174,2]
[327222462,1715903459105,-500.0,0.00011174,2]
[327222463,1715903459115,-500.0,0.00011174,2]
[327222464,1715903459125,-500.0,0.00011174,2]
[327222465,1715903459135,-500.0,0.00011174,2]
[327222466,1715903459145,-500.0,0.00011174,2]
[327222467,1715903459155,-247.36622078,0.00011174,2]
[327222468,1715903459165,-500.0,0.00011174,2]
[327222469,1715903459174,-757.23,0.00011174,2]
[327222470,1715903459184,-500.0,0.00011174,2]
[327222471,1715903459194,-757.23,0.00011174,2]
[327222472,1715903459204,-1481.96,0.00011174,2]
[327222473,1715903459214,-1481.96,0.00011174,2]
[327222474,1715903459224,-500.0,0.00011174,2]
[327222475,1715903459234,-500.94,0.00011174,2]
[327222476,1715903459244,-500.94,0.00011174,2]
[327222477,1715903459254,-673.11,0.00011174,2]
[327222478,1715903459264,-500.0,0.00011174,2]
[327222479,1715903459274,-500.0,0.00011174,2]
[327222480,1715903459285,-376.72,0.00011174,2]
[327222481,1715903459295,-500.0,0.00011174,2]
[327222482,1715903459305,-500.0,0.00011174,2]
[327222483,1715903459315,-500.0,0.00011174,2]
[327222484,1715903459326,-823.29,0.00011174,2]
[327222485,1715903459336,-823.29,0.00011174,2]
[327222486,1715903459346,-151.0,0.00011174,2]
[327222487,1715903459357,-385.92106877,0.00011174,2]